bitfinex/quotes_SOLUSD_20240816
["timestamp","ask_amount","ask_price","bid_price","bid_amount"]
[1723796915065,9.9,144.01,143.93,16.3247]
[1723796916459,6.9436,144.02,143.93,16.3247]
[1723796916748,6.9436,144.02,143.94,10.4]
[1723796917376,17.3431,144.03,143.94,10.4]
[1723796917573,10.4,144.03,143.94,10.4]
[1723796917855,6.9426,144.04,143.96,10.4]
[1723796918993,10.4,144.06,143.96,10.4]
[1723796919292,6.9418,144.06,143.98,10.4]
[1723796922214,0.12549,144.05,143.98,10.4]
[1723796922507,6.9418,144.06,143.98,10.4]
[1723796924289,20.0,144.05,143.98,10.4]
[1723796926404,6.9434,144.02,143.97,21.4201]
[1723796926915,0.12549,144.01,143.97,21.4201]
[1723796928197,0.12549,144.02,143.97,21.4201]
[1723796928373,0.12549,144.02,143.97,15.0431]
[1723796928577,0.12549,144.02,143.92,15.2463]
[1723796928578,6.9455,143.98,143.92,15.2463]
[1723796928887,10.52549,143.97,143.92,15.2463]
[1723796930585,17.47139,143.97,143.92,15.2463]
[1723796932786,6.9464,143.96,143.92,15.2463]
[1723796936340,17.59698,143.97,143.92,15.2463]
[1723796936635,20.0,143.96,143.92,15.2463]
[1723796939719,0.12549,143.95,143.92,15.2463]
[1723796940110,20.0,143.96,143.92,15.2463]
[1723796944138,20.0,143.97,143.92,15.2463]
[1723796951060,20.0,143.98,143.92,15.2463]
[1723796953110,10.4,144.01,143.92,15.2463]
[1723796953522,7.07019,144.0,143.92,15.2463]
[1723796953717,6.9447,144.0,143.93,10.4]
[1723796954191,17.59488,144.02,143.93,10.4]
[1723796954517,7.06949,144.01,143.93,30.4]
[1723796954930,6.944,144.01,143.94,6.5439]
[1723796955420,17.3436,144.02,143.95,15.006]
[1723796955722,6.9447,144.0,143.95,15.006]
[1723796955888,6.945,143.99,143.95,15.006]
[1723796956520,17.47009,144.0,143.95,15.006]
[1723796958585,17.3446,144.0,143.95,15.006]
[1723796958790,6.9446,144.0,143.95,15.006]
[1723796959128,27.06979,144.01,143.95,15.006]
[1723796960736,10.65098,144.0,143.95,15.006]
[1723796960900,6.9455,143.98,143.95,15.006]
[1723796961834,7.07069,143.99,143.95,15.006]
[1723796962010,20.0,143.98,143.95,15.006]
[1723796963625,20.0,143.99,143.95,15.006]
[1723796963812,20.12549,144.01,143.95,15.006]
[1723796964015,0.12549,144.0,143.95,15.006]
[1723796964411,0.02549,144.0,143.95,15.006]
[1723796964721,27.06969,144.01,143.95,15.006]
[1723796965051,6.9444,144.0,143.95,15.006]
[1723796965355,20.0,143.99,143.95,15.006]
[1723796965648,6.9435,144.02,143.95,15.006]
[1723796966955,20.0,144.01,143.95,15.006]
[1723796967181,6.9445,144.0,143.95,15.006]
[1723796967565,37.344,144.01,143.95,15.006]
[1723796968957,30.4,144.01,143.95,15.006]
[1723796969270,37.3439,144.01,143.95,15.006]
[1723796970673,20.0,144.01,143.95,15.006]
[1723796971844,26.9442,144.01,143.95,15.006]
[1723796973680,20.0,144.01,143.95,15.006]
[1723796988972,26.9441,144.01,143.95,15.006]
[1723796989167,6.9448,144.0,143.95,15.006]
[1723796989395,0.12549,144.0,143.95,15.006]
[1723796989589,6.9457,143.98,143.95,15.006]
[1723796992603,17.346,143.97,143.95,15.006]
[1723796992906,10.52549,143.97,143.95,15.006]
[1723796993073,10.4,143.97,143.95,15.006]
[1723796993502,17.346,143.97,143.95,15.006]
[1723796994307,17.346,143.97,143.91,15.3693]
[1723796994475,10.4,143.95,143.91,15.3693]
[1723796995273,17.3472,143.95,143.91,15.3693]
[1723796996483,0.12549,143.94,143.91,15.3693]
[1723796999081,17.3472,143.95,143.91,15.3693]
[1723797000532,7.07199,143.96,143.91,15.3693]
[1723797000732,20.0,143.95,143.91,15.3693]
[1723797001302,20.12549,143.96,143.91,15.3693]
[1723797001591,20.0,143.96,143.91,15.3693]
[1723797001791,20.0,143.97,143.91,15.3693]
[1723797002102,6.9463,143.96,143.91,15.3693]
[1723797002288,20.0,143.95,143.91,15.3693]
[1723797002908,20.0,143.97,143.91,15.3693]
[1723797003423,26.9459,143.97,143.91,15.3693]
[1723797006714,6.9464,143.96,143.91,15.3693]
[1723797007733,6.9469,143.95,143.91,15.3693]
[1723797008792,17.3465,143.96,143.91,15.3693]
[1723797009021,20.0,143.95,143.91,15.3693]
[1723797010929,17.59648,143.98,143.91,15.3693]
[1723797011137,20.0,143.97,143.91,15.3693]
[1723797013653,20.0,143.97,143.91,25.7693]
[1723797013814,6.9449,143.99,143.91,45.7693]
[1723797014026,32.3636,144.03,143.92,6.1551]
[1723797014224,17.3447,144.0,143.92,6.1551]
[1723797014525,10.4,144.0,143.93,20.0]
[1723797014736,6.944,144.01,143.94,16.4609]
[1723797014920,6.9436,144.02,143.94,16.4609]
[1723797015122,6.9436,144.02,143.95,20.0]
[1723797015320,10.4,144.03,143.95,20.0]
[1723797015321,17.3431,144.03,143.95,20.0]
[1723797015537,17.3431,144.03,143.95,10.4]
[1723797015538,6.9434,144.02,143.95,10.4]
[1723797015823,17.343,144.03,143.95,10.4]
[1723797017232,20.0,144.02,143.95,10.4]
[1723797017763,26.9436,144.02,143.94,16.4609]
[1723797018639,20.0,144.02,143.95,20.0]
[1723797019044,20.0,144.02,143.96,15.3781]
[1723797019242,20.0,144.03,143.97,6.0014]
[1723797020241,10.4,144.06,143.97,36.4014]
[1723797020442,10.4,144.06,143.98,16.6651]
[1723797020443,17.3418,144.06,143.98,16.6651]
[1723797021787,20.0,144.05,143.98,16.6651]
[1723797022979,10.52549,144.04,143.98,16.6651]
[1723797023484,17.46829,144.04,143.98,16.6651]
[1723797025179,27.19308,144.05,143.98,16.6651]
[1723797025355,7.06799,144.04,143.98,16.6651]
[1723797025554,6.9425,144.04,143.98,16.6651]
[1723797025982,0.12549,144.04,143.98,16.6651]
[1723797026302,27.06759,144.05,143.98,16.6651]
[1723797026498,10.4,144.04,143.98,16.6651]
[1723797029397,10.4,144.04,143.98,36.6651]
[1723797030397,20.0,144.05,143.98,36.6651]
[1723797030707,10.4,144.06,143.98,36.6651]
[1723797031061,20.0,144.05,143.98,36.6651]
[1723797033363,20.0,144.05,143.98,47.0651]
[1723797033592,20.0,144.05,143.99,15.0712]
[1723797033793,26.9413,144.07,143.99,15.0712]
[1723797036112,10.4,144.06,143.99,15.0712]
[1723797036429,20.0,144.05,143.99,15.0712]
[1723797036728,26.9413,144.07,143.99,15.0712]
[1723797037110,20.0,144.07,143.99,15.0712]
[1723797038305,20.0,144.07,144.01,6.4842]
[1723797038904,6.94,144.1,144.03,20.0]
[1723797039101,6.94,144.1,144.04,16.5726]
[1723797039303,34.16220842,144.11,144.04,16.5726]
[1723797039928,16.82290842,144.11,144.04,16.5726]
[1723797040114,16.82290842,144.11,144.05,6.0776]
[1723797040309,10.4,144.12,144.05,6.0776]
[1723797040310,10.4,144.12,144.06,16.3116]
[1723797040524,6.9385,144.13,144.06,16.3116]
[1723797040723,6.9378,144.14,144.06,16.3116]
[1723797041715,10.4,144.12,144.06,16.3116]
[1723797041924,6.9391,144.11,144.06,16.3116]
[1723797043315,10.4,144.1,144.06,16.3116]
[1723797046028,6.9386,144.12,144.06,16.3116]
[1723797046747,17.3386,144.12,144.06,16.3116]
[1723797047418,6.9392,144.11,144.06,16.3116]
[1723797049549,6.941,144.07,144.06,16.3116]
[1723797049843,0.12549,144.12,144.06,16.3116]
[1723797050013,0.25098,144.12,144.06,16.3116]
[1723797050218,6.9397,144.1,144.06,16.3116]
[1723797050454,26.9401,144.09,144.06,16.3116]
[1723797051051,20.0,144.09,144.06,16.3116]
[1723797051751,6.9391,144.11,144.06,16.3116]
[1723797052056,20.0,144.1,144.06,16.3116]
[1723797052233,20.0,144.11,144.06,16.3116]
[1723797052635,20.0,144.11,144.06,36.3116]
[1723797052854,10.4,144.12,144.07,6.0429]
[1723797053054,6.9368,144.16,144.07,6.0429]
[1723797053366,17.3376,144.15,144.07,6.0429]
[1723797053545,6.9377,144.14,144.07,6.0429]
[1723797053930,10.4,144.13,144.07,6.0429]
[1723797054335,17.3394,144.11,144.07,6.0429]
[1723797056940,17.3431,144.15,144.07,6.0429]
[1723797056941,6.9387,144.12,144.07,6.0429]
[1723797057138,20.0,144.11,144.07,6.0429]
[1723797057473,20.0,144.11,144.06,16.3116]
[1723797057474,10.4,144.1,144.06,16.3116]
[1723797058468,26.9394,144.11,144.06,16.3116]
[1723797058469,17.3407,144.08,144.06,16.3116]
[1723797058684,6.941,144.07,144.06,16.3116]
[1723797058849,26.941,144.07,144.06,16.3116]
[1723797059167,20.0,144.07,144.02,15.2122]
[1723797060358,30.4,144.07,144.02,15.2122]
[1723797060743,20.0,144.07,144.02,15.2122]
[1723797060975,20.0,144.08,144.02,15.2122]
[1723797061181,20.0,144.08,144.02,35.2122]
[1723797061789,10.4,144.09,144.04,20.0]
[1723797061960,6.9397,144.1,144.02,15.2122]
[1723797062162,17.3393,144.11,144.02,15.2122]
[1723797062672,17.3393,144.11,144.03,22.3586]
[1723797063071,20.0,144.1,144.03,22.3586]
[1723797064573,20.0,144.1,144.03,42.3586]
[1723797064768,20.0,144.1,144.04,20.0]
[1723797065076,20.0,144.1,144.03,22.3586]
[1723797065461,17.46559,144.09,144.03,22.3586]
[1723797065790,10.52549,144.09,144.03,16.0528]
[1723797065992,10.4,144.07,144.03,16.0528]
[1723797066360,17.3412,144.07,144.03,16.0528]
[1723797067264,6.9428,144.04,143.99,16.0528]
[1723797067502,10.4,144.02,143.99,16.0528]
[1723797068573,10.4,144.0,143.96,15.9755]
[1723797068773,6.9448,144.0,143.96,15.9755]
[1723797069901,7.19498,144.01,143.96,15.9755]
[1723797070097,20.0,144.0,143.96,15.9755]
[1723797070412,20.0,144.02,143.96,15.9755]
[1723797072392,7.07019,144.0,143.96,15.9755]
[1723797072904,20.0,143.99,143.96,15.9755]
[1723797073698,20.0,144.0,143.96,15.9755]
[1723797074280,26.9445,144.0,143.96,15.9755]
[1723797074587,20.0,144.0,143.96,15.9755]
[1723797075761,26.9445,144.0,143.96,15.9755]
[1723797076393,6.945,143.99,143.96,15.9755]
[1723797077470,6.945,143.99,143.93,16.5818]
[1723797077471,7.07089,143.98,143.93,16.5818]
[1723797078806,7.07089,143.98,143.88,25.97]
[1723797078807,25.97,143.95,143.89,16.1376]
[1723797078986,32.9169,143.95,143.89,16.1376]
[1723797080774,25.97,143.95,143.89,16.1376]
[1723797082000,7.07189,143.96,143.89,36.1376]
[1723797082001,0.12549,143.96,143.89,36.1376]
[1723797082166,53.16688,143.97,143.89,36.1376]
[1723797082167,20.0,143.97,143.89,36.1376]
[1723797082367,25.97,143.99,143.9,0.25098]
[1723797082368,20.0,143.98,143.9,0.25098]
[1723797082682,20.0,143.98,143.91,20.0]
[1723797082881,20.0,143.98,143.9,0.25098]
[1723797083085,26.9454,143.98,143.9,0.25098]
[1723797083297,20.0,143.98,143.9,0.25098]
[1723797083505,20.0,143.98,143.91,20.0]
[1723797083800,20.0,143.98,143.9,20.25098]
[1723797084186,20.0,143.98,143.92,20.0]
[1723797084381,25.97,144.01,143.93,15.5957]
[1723797084590,6.9439,144.01,143.94,20.0]
[1723797085783,20.12549,144.0,143.94,20.0]
[1723797087603,20.12549,144.0,143.93,15.5957]
[1723797088108,6.9457,143.98,143.93,15.5957]
[1723797088313,33.04049,143.99,143.93,15.5957]
[1723797088510,20.0,143.98,143.93,15.5957]
[1723797090304,26.9455,143.98,143.93,15.5957]
[1723797090492,0.12549,143.97,143.93,15.5957]
[1723797091714,20.0,143.98,143.93,15.5957]
[1723797092310,23.8126,144.02,143.93,35.5957]
[1723797092311,33.03979,144.01,143.93,35.5957]
[1723797092614,20.12549,144.0,143.93,35.5957]
[1723797093188,20.12549,144.0,143.93,15.5957]
[1723797094010,0.12549,143.99,143.93,15.5957]
[1723797094201,26.09549,143.99,143.93,15.5957]
[1723797101338,33.04039,143.99,143.93,15.5957]
[1723797101567,0.12549,143.98,143.93,15.5957]
[1723797101704,20.12549,143.98,143.93,15.5957]
[1723797104003,20.0,143.98,143.93,15.5957]
[1723797104445,20.0,143.98,143.93,35.5957]
[1723797104937,20.0,143.99,143.93,35.5957]
[1723797105840,20.0,143.99,143.93,15.5957]
[1723797108161,6.944,144.01,143.95,20.0]
[1723797108661,0.25098,144.0,143.93,21.773]
[1723797109080,0.12549,143.99,143.93,21.773]
[1723797109761,0.12549,143.96,143.93,15.5957]
[1723797109935,0.37647,143.96,143.89,22.1772]
[1723797110148,6.9476,143.94,143.89,15.9999]
[1723797110357,0.12549,143.93,143.89,15.9999]
[1723797112272,0.12549,143.96,143.89,15.9999]
[1723797113162,7.07179,143.96,143.89,15.9999]
[1723797113850,20.0,143.95,143.89,15.9999]
[1723797114053,6.72121434,144.02,143.91,26.0928]
[1723797114342,6.9446,144.0,143.91,26.0928]
[1723797114655,6.9441,144.01,143.94,15.9262]
[1723797115734,20.0,144.0,143.94,15.9262]
[1723797117972,20.0,144.0,143.95,20.0]
[1723797118341,20.0,144.01,143.95,20.0]
[1723797121660,26.9441,144.01,143.94,15.9262]
[1723797121980,6.9449,143.99,143.94,15.9262]
[1723797122461,0.12549,143.98,143.94,15.9262]
[1723797122668,7.07099,143.98,143.94,15.9262]
[1723797122873,6.9458,143.97,143.94,15.9262]
[1723797123236,6.9458,143.97,143.89,16.1391]
[1723797123237,27.19738,143.96,143.89,16.1391]
[1723797123443,0.12549,143.95,143.9,2.08698212]
[1723797123749,0.12549,143.95,143.89,16.1391]
[1723797125467,27.19738,143.96,143.89,16.1391]
[1723797125668,27.07189,143.96,143.89,16.1391]
[1723797126370,20.12549,143.96,143.89,16.1391]
[1723797126584,20.12549,143.96,143.9,2.08701994]
[1723797126763,20.12549,143.96,143.89,16.1391]
[1723797126950,20.12549,143.96,143.9,22.08701836]
[1723797127155,6.4581,144.0,143.9,22.08701836]
[1723797127156,6.4581,144.0,143.91,2.08696101]
[1723797127367,6.4581,144.0,143.9,20.0]
[1723797127544,6.4581,144.0,143.91,2.08672967]
[1723797127880,6.4581,144.0,143.92,2.08672967]
[1723797128075,6.9449,143.99,143.92,20.0]
[1723797128678,20.0,143.98,143.92,20.0]
[1723797129666,20.0,143.98,143.9,20.0]
[1723797130176,20.0,143.98,143.91,2.08672528]
[1723797130482,20.0,143.98,143.92,2.08672528]
[1723797130660,0.25098,143.97,143.89,16.1391]
[1723797130862,0.25098,143.97,143.9,2.08685114]
[1723797130863,7.32237,143.97,143.9,2.08685114]
[1723797131189,7.32237,143.97,143.91,2.08685114]
[1723797131344,7.32237,143.97,143.89,16.1391]
[1723797131550,7.32237,143.97,143.9,2.08686626]
[1723797131849,7.32237,143.97,143.91,2.08686626]
[1723797132056,7.32237,143.97,143.89,16.1391]
[1723797132280,7.32237,143.97,143.9,2.08686681]
[1723797132458,7.32237,143.97,143.89,16.1391]
[1723797132656,7.32237,143.97,143.9,2.08695924]
[1723797132861,7.32237,143.97,143.89,16.1391]
[1723797133180,7.32237,143.97,143.9,22.08695861]
[1723797133357,7.32237,143.97,143.91,2.08695861]
[1723797133557,7.32237,143.97,143.9,20.0]
[1723797133781,7.32237,143.97,143.91,2.08691484]
[1723797134080,7.32237,143.97,143.9,20.0]
[1723797134449,7.32237,143.97,143.89,16.1391]
[1723797134683,7.32237,143.97,143.9,2.08695861]
[1723797134859,7.32237,143.97,143.89,16.1391]
[1723797135185,7.32237,143.97,143.9,2.08697366]
[1723797135391,7.32237,143.97,143.89,16.1391]
[1723797135578,7.32237,143.97,143.9,2.08690529]
[1723797135887,7.32237,143.97,143.89,16.1391]
[1723797136089,20.0,143.98,143.92,20.0]
[1723797136292,6.4581,144.0,143.9,20.12549]
[1723797136293,20.0,143.99,143.9,20.12549]
[1723797136605,20.0,143.99,143.91,2.08676131]
[1723797136889,26.9449,143.99,143.9,20.0]
[1723797137071,26.9449,143.99,143.91,2.08679361]
[1723797137381,26.9449,143.99,143.9,20.0]
[1723797137585,0.12549,143.98,143.91,2.08679118]
[1723797137807,0.12549,143.98,143.9,20.0]
[1723797137978,0.12549,143.98,143.91,2.08679721]
[1723797138185,0.12549,143.98,143.92,2.08675006]
[1723797138359,0.12549,143.98,143.89,36.26459]
[1723797138360,0.12549,143.98,143.91,20.0]
[1723797138595,0.12549,143.98,143.92,2.08675101]
[1723797138888,0.12549,143.98,143.91,20.0]
[1723797139105,0.12549,143.98,143.92,2.08675039]
[1723797139311,0.12549,143.98,143.91,20.0]
[1723797139467,0.12549,143.98,143.92,2.08675101]
[1723797139669,20.0,143.99,143.93,20.0]
[1723797143591,20.0,144.0,143.93,20.0]
[1723797145414,20.0,144.0,143.92,20.0]
[1723797145415,0.12549,143.99,143.92,20.0]
[1723797146988,0.12549,143.99,143.93,2.08664117]
[1723797147188,0.12549,143.99,143.92,20.0]
[1723797147525,0.12549,143.99,143.93,2.08664117]
[1723797147711,0.12549,143.99,143.92,20.0]
[1723797147913,0.12549,143.99,143.93,2.08664117]
[1723797148089,0.12549,143.99,143.92,20.0]
[1723797148289,0.12549,143.99,143.93,2.08664421]
[1723797148491,0.12549,143.99,143.92,20.0]
[1723797148720,0.12549,143.99,143.93,2.08664421]
[1723797148920,0.12549,143.99,143.92,20.0]
[1723797149228,0.12549,143.99,143.93,2.08664421]
[1723797149397,0.12549,143.99,143.92,20.0]
[1723797149597,0.12549,143.99,143.93,2.08664359]
[1723797149826,0.12549,143.99,143.92,20.0]
[1723797150121,0.12549,143.99,143.93,2.08664241]
[1723797150436,0.12549,143.99,143.94,20.0]
[1723797150642,0.12549,143.99,143.92,20.0]
[1723797152236,0.12549,143.99,143.94,20.0]
[1723797152641,20.0,144.0,143.94,20.0]
[1723797155541,0.12549,143.99,143.9,20.0]
[1723797155749,0.12549,143.98,143.91,2.08688278]
[1723797156041,0.12549,143.98,143.92,22.08688278]
[1723797156241,0.12549,143.99,143.92,20.0]
[1723797156437,27.07039,143.99,143.92,20.0]
[1723797156673,7.07039,143.99,143.92,20.0]
[1723797157512,7.07039,143.99,143.94,20.0]
[1723797157513,0.12549,143.99,143.94,20.0]
[1723797157850,31.82082656,144.03,143.96,20.0]
[1723797158077,31.82082656,144.03,143.99,20.0]
[1723797158078,24.87752656,144.03,143.99,20.0]
[1723797158371,6.4718,144.08,143.99,20.0]
[1723797158534,6.4718,144.08,144.01,20.0]
[1723797158874,13.4125,144.08,144.01,20.0]
[1723797159233,6.4718,144.08,144.01,20.0]
[1723797160335,13.4124,144.08,144.01,20.0]
[1723797160537,20.0,144.07,144.01,20.0]
[1723797162366,6.9428,144.04,143.97,20.0]
[1723797162940,7.06759,144.05,143.97,20.0]
[1723797163563,7.06759,144.05,143.95,15.9958]
[1723797163564,7.06759,144.05,143.99,20.0]
[1723797164769,7.06709,144.06,143.99,20.0]
[1723797164938,20.0,144.05,143.99,20.0]
[1723797165851,20.0,144.05,144.01,20.0]
[1723797166057,20.0,144.05,143.99,20.0]
[1723797166678,20.12549,144.07,144.01,20.0]
[1723797166837,20.0,144.07,144.01,20.0]
[1723797167046,20.0,144.07,143.99,20.0]
[1723797168072,26.941,144.07,143.99,20.0]
[1723797170371,26.941,144.07,144.01,20.0]
[1723797172462,7.06709,144.06,143.99,20.0]
[1723797172663,26.9422,144.05,143.99,20.0]
[1723797174987,20.0,144.05,143.99,20.0]
[1723797176778,20.0,144.05,144.01,20.0]
[1723797183177,20.0,144.06,144.01,20.0]
[1723797183998,26.941,144.07,143.99,20.0]
[1723797184559,6.9416,144.06,143.99,20.0]
[1723797186774,6.9421,144.05,143.99,20.0]
[1723797187100,6.9421,144.05,143.97,20.0]
[1723797187397,0.12549,144.02,143.91,35.7695]
[1723797187698,6.945,143.99,143.91,15.7695]
[1723797187902,0.12549,144.0,143.91,15.7695]
[1723797188194,6.3432,143.97,143.89,20.0]
[1723797188402,13.2891,143.97,143.89,22.08666095]
[1723797188571,0.12549,143.96,143.89,20.0]
[1723797189081,7.07189,143.96,143.89,22.08692729]
[1723797189278,7.07189,143.96,143.89,20.0]
[1723797189976,0.12549,143.96,143.89,20.0]
[1723797190175,20.12549,143.96,143.89,20.0]
[1723797191410,20.12549,143.96,143.9,20.0]
[1723797191725,20.0,143.96,143.9,20.0]
[1723797194782,20.0,143.96,143.88,15.7695]
[1723797194783,20.0,143.96,143.88,35.7695]
[1723797194993,26.9465,143.96,143.88,35.7695]
[1723797196100,6.9469,143.95,143.88,35.7695]
[1723797196312,20.0,143.94,143.88,35.7695]
[1723797196996,26.9474,143.94,143.88,35.7695]
[1723797197196,26.9474,143.94,143.85,22.0869639]
[1723797197399,6.9481,143.93,143.85,22.0869639]
[1723797197584,20.0,143.92,143.85,20.0]
[1723797198190,20.0,143.92,143.86,20.0]
[1723797199176,6.9494,143.9,143.84,38.6573639]
[1723797199406,13.4455,143.91,143.84,36.5704]
[1723797199883,13.4455,143.91,143.86,20.0]
[1723797200085,6.4966,143.91,143.84,36.5704]
[1723797201111,6.4966,143.91,143.88,20.0]
[1723797201408,6.4966,143.91,143.84,36.5704]
[1723797201409,6.4966,143.91,143.86,20.0]
[1723797202798,6.4966,143.91,143.84,36.5704]
[1723797204391,13.4454,143.91,143.82,40.0]
[1723797204779,0.12549,143.9,143.82,20.0]
[1723797204983,6.9497,143.89,143.82,20.0]
[1723797207102,7.07479,143.9,143.82,20.0]
[1723797207293,20.0,143.89,143.82,20.0]
[1723797207494,20.0,143.89,143.84,20.0]
[1723797207918,20.0,143.89,143.82,20.0]
[1723797208917,26.9498,143.89,143.82,20.0]
[1723797212521,26.9498,143.89,143.8,35.3781]
[1723797212690,0.12549,143.88,143.8,35.3781]
[1723797213022,7.20118,143.88,143.8,35.3781]
[1723797213793,7.20118,143.88,143.8,20.0]
[1723797214000,6.951,143.87,143.78,27.25077664]
[1723797214332,6.0152,143.85,143.78,27.25077664]
[1723797215936,6.0152,143.85,143.78,20.0]
[1723797216532,6.0152,143.85,143.8,20.0]
[1723797217889,6.0152,143.85,143.78,20.0]
[1723797219225,6.0152,143.85,143.76,35.9795]
[1723797219434,0.25098,143.84,143.77,20.0]
[1723797219594,0.25098,143.84,143.75,0.8540329]
[1723797219595,0.12549,143.83,143.75,0.8540329]
[1723797219795,7.07819,143.83,143.75,0.8540329]
[1723797219992,0.12549,143.82,143.75,0.8540329]
[1723797220609,0.25098,143.82,143.76,20.0]
[1723797221417,0.25098,143.82,143.75,0.8540329]
[1723797221621,20.0,143.84,143.78,20.0]
[1723797222034,26.9522,143.84,143.76,20.0]
[1723797222826,20.0,143.84,143.76,20.0]
[1723797223028,0.25098,143.83,143.76,20.0]
[1723797223405,0.12549,143.83,143.78,20.0]
[1723797224339,20.0,143.84,143.78,20.0]
[1723797224509,20.0,143.84,143.75,20.8540329]
[1723797224510,20.0,143.84,143.76,20.0]
[1723797224710,20.0,143.84,143.78,20.0]
[1723797225007,20.0,143.84,143.76,20.0]
[1723797225399,20.0,143.84,143.78,20.0]
[1723797226925,0.12549,143.83,143.79,20.0]
[1723797227128,20.0,143.84,143.75,0.8540329]
[1723797227430,20.0,143.84,143.76,20.0]
[1723797228502,20.0,143.84,143.78,20.0]
[1723797230563,6.0152,143.85,143.8,20.0]
[1723797231618,6.0152,143.85,143.82,20.0]
[1723797231815,6.0152,143.85,143.8,20.0]
[1723797232428,6.0152,143.85,143.78,20.0]
[1723797233442,6.0152,143.85,143.77,20.0]
[1723797233628,0.12549,143.84,143.77,20.0]
[1723797234443,0.12549,143.84,143.79,20.0]
[1723797242346,0.25098,143.84,143.79,20.0]
[1723797243442,0.12549,143.84,143.79,20.0]
[1723797248062,0.25098,143.84,143.78,2.08848902]
[1723797248227,20.25098,143.84,143.77,20.0]
[1723797249058,20.25098,143.84,143.79,20.0]
[1723797251739,20.12549,143.84,143.79,20.0]
[1723797255037,20.0,143.84,143.79,20.0]
[1723797255356,20.0,143.84,143.8,2.08844143]
[1723797255554,20.0,143.84,143.79,20.0]
[1723797257444,20.0,143.84,143.76,10.44236321]
[1723797257667,20.0,143.84,143.77,22.08853448]
[1723797257966,20.0,143.84,143.79,20.0]
[1723797259478,20.0,143.84,143.8,2.08853175]
[1723797259639,20.0,143.84,143.79,20.0]
[1723797259845,20.0,143.84,143.8,2.0884927]
[1723797260150,20.0,143.84,143.79,20.0]
[1723797260473,20.0,143.84,143.8,2.08849333]
[1723797260775,20.0,143.84,143.79,20.0]
[1723797261080,20.0,143.84,143.8,2.08849333]
[1723797261387,20.0,143.84,143.79,20.0]
[1723797261551,20.0,143.84,143.8,2.08848549]
[1723797261754,20.0,143.84,143.79,20.0]
[1723797262266,20.0,143.84,143.8,2.08849333]
[1723797262473,20.0,143.84,143.78,20.0]
[1723797262643,20.0,143.84,143.79,2.08848384]
[1723797262841,20.0,143.84,143.8,2.08848384]
[1723797263083,20.0,143.84,143.78,20.0]
[1723797263397,20.0,143.84,143.79,2.08847105]
[1723797263683,6.0152,143.85,143.81,20.0]
[1723797263974,6.0152,143.85,143.82,2.08847105]
[1723797264287,6.0152,143.85,143.81,20.0]
[1723797264491,6.0152,143.85,143.82,2.08830135]
[1723797264675,6.6439,143.89,143.81,20.0]
[1723797264990,6.6439,143.89,143.84,20.0]
[1723797265676,6.6439,143.89,143.85,2.08792749]
[1723797265854,6.6439,143.89,143.84,20.0]